[Event "Open NK Rapid 2025 bord 26-50"]
[Site "Helmond, Netherlands"]
[Date "2025.05.03"]
[Round "4.3"]
[White "Shakya, Amin"]
[Black "Margaryan, Aren"]
[Result "0-1"]
[TimeControl "15 min +5 sec increment"]
[WhiteFideId "12311677"]
[BlackFideId "40105075"]
[WhiteElo "1826"]
[BlackElo "2054"]

1. b3 {[%clk 00:15:09]} e5 {[%clk 00:15:06]} {[%emt 00:00:05]} 2. Bb2 {[%clk
00:15:13]} {[%emt 00:00:01]} Nc6 {[%clk 00:15:07]} {[%emt 00:00:04]} 3. e3
{[%clk 00:15:17]} {[%emt 00:00:01]} Nf6 {[%clk 00:15:06]} {[%emt 00:00:05]} 4.
Nf3 {[%clk 00:14:45]} {[%emt 00:00:37]} d6 {[%clk 00:14:51]} {[%emt 00:00:21]}
5. Bb5 {[%clk 00:14:49]} {[%emt 00:00:02]} Bd7 {[%clk 00:14:46]} {[%emt
00:00:10]} 6. O-O {[%clk 00:14:07]} {[%emt 00:00:46]} Be7 {[%clk 00:14:45]}
{[%emt 00:00:06]} 7. c4 {[%clk 00:13:50]} {[%emt 00:00:22]} a6 {[%clk
00:14:42]} {[%emt 00:00:09]} 8. Bxc6 {[%clk 00:13:52]} {[%emt 00:00:02]} Bxc6
{[%clk 00:14:45]} {[%emt 00:00:01]} 9. Nc3 {[%clk 00:13:09]} {[%emt 00:00:48]}
Qd7 {[%clk 00:14:40]} {[%emt 00:00:11]} 10. h3 {[%clk 00:12:13]} {[%emt
00:01:00]} Qf5 {[%clk 00:14:28]} {[%emt 00:00:18]} 11. Qe2 {[%clk 00:11:10]}
{[%emt 00:01:08]} Bxf3 {[%clk 00:13:53]} {[%emt 00:00:40]} 12. Qxf3 {[%clk
00:11:13]} {[%emt 00:00:02]} Qxf3 {[%clk 00:13:46]} {[%emt 00:00:12]} 13. gxf3
{[%clk 00:11:16]} {[%emt 00:00:01]} g5 {[%clk 00:13:42]} {[%emt 00:00:10]} 14.
Nd5 {[%clk 00:10:47]} {[%emt 00:00:34]} Nxd5 {[%clk 00:13:43]} {[%emt
00:00:04]} 15. cxd5 {[%clk 00:10:51]} {[%emt 00:00:02]} f5 {[%clk 00:13:43]}
{[%emt 00:00:04]} 16. Rac1 {[%clk 00:10:46]} {[%emt 00:00:10]} Kd7 {[%clk
00:13:47]} {[%emt 00:00:01]} 17. Rc4 {[%clk 00:10:33]} {[%emt 00:00:18]} Raf8
{[%clk 00:13:26]} {[%emt 00:00:25]} 18. Rfc1 {[%clk 00:10:16]} {[%emt
00:00:23]} Bd8 {[%clk 00:13:30]} {[%emt 00:00:01]} 19. Kf1 {[%clk 00:09:50]}
{[%emt 00:00:31]} Rhg8 {[%clk 00:13:18]} {[%emt 00:00:17]} 20. a4 {[%clk
00:09:17]} {[%emt 00:00:37]} Rf6 {[%clk 00:12:54]} {[%emt 00:00:30]} 21. f4
{[%clk 00:08:59]} {[%emt 00:00:23]} gxf4 {[%clk 00:11:47]} {[%emt 00:01:12]} 22.
exf4 {[%clk 00:09:02]} {[%emt 00:00:02]} Rh6 {[%clk 00:11:28]} {[%emt
00:00:23]} 23. fxe5 {[%clk 00:07:55]} {[%emt 00:01:13]} dxe5 {[%clk 00:11:04]}
{[%emt 00:00:29]} 24. Bxe5 {[%clk 00:07:42]} {[%emt 00:00:18]} Rxh3 {[%clk
00:11:07]} {[%emt 00:00:02]} 25. Bg3 {[%clk 00:07:30]} {[%emt 00:00:17]} Rh1+
{[%clk 00:10:48]} {[%emt 00:00:24]} 26. Kg2 {[%clk 00:07:34]} Rxc1 {[%clk
00:10:51]} {[%emt 00:00:01]} 27. Rxc1 {[%clk 00:07:33]} {[%emt 00:00:07]} f4
{[%clk 00:10:55]} {[%emt 00:00:01]} 28. Rh1 {[%clk 00:07:31]} {[%emt 00:00:07]}
Rg7 {[%clk 00:10:54]} {[%emt 00:00:06]} 29. Kf3 {[%clk 00:07:29]} {[%emt
00:00:07]} fxg3 {[%clk 00:10:57]} {[%emt 00:00:02]} 30. fxg3 {[%clk 00:07:33]}
{[%emt 00:00:01]} Kd6 {[%clk 00:10:58]} {[%emt 00:00:04]} 31. Rh5 {[%clk
00:07:34]} {[%emt 00:00:04]} Bg5 {[%clk 00:10:57]} {[%emt 00:00:05]} 32. b4
{[%clk 00:07:05]} {[%emt 00:00:35]} Bxd2 {[%clk 00:10:53]} {[%emt 00:00:10]} 33.
b5 {[%clk 00:07:07]} {[%emt 00:00:03]} axb5 {[%clk 00:10:56]} {[%emt 00:00:01]}
34. axb5 {[%clk 00:07:10]} {[%emt 00:00:01]} Rg5 {[%clk 00:10:52]} {[%emt
00:00:10]} 35. Rh6+ {[%clk 00:07:06]} {[%emt 00:00:09]} Kxd5 {[%clk 00:10:54]}
{[%emt 00:00:03]} 36. Rxh7 {[%clk 00:07:09]} {[%emt 00:00:02]} Ba5 {[%clk
00:10:51]} {[%emt 00:00:08]} 37. Kf4 {[%clk 00:07:05]} {[%emt 00:00:09]} Rg8
{[%clk 00:10:48]} {[%emt 00:00:08]} 38. g4 {[%clk 00:06:53]} {[%emt 00:00:17]}
Kc4 {[%clk 00:10:46]} {[%emt 00:00:07]} 39. Rh5 {[%clk 00:06:39]} {[%emt
00:00:19]} Bb6 {[%clk 00:10:50]} {[%emt 00:00:01]} 40. Rf5 {[%clk 00:06:35]}
{[%emt 00:00:09]} Bc5 {[%clk 00:10:49]} {[%emt 00:00:06]} 41. g5 {[%clk
00:06:17]} {[%emt 00:00:23]} Rf8 {[%clk 00:10:52]} {[%emt 00:00:02]} 42. Rxf8
{[%clk 00:06:12]} {[%emt 00:00:10]} Bxf8 {[%clk 00:10:55]} {[%emt 00:00:02]} 43.
b6 {[%clk 00:06:15]} {[%emt 00:00:02]} cxb6 {[%clk 00:10:57]} {[%emt 00:00:03]}
44. Kf5 {[%clk 00:06:16]} {[%emt 00:00:04]} Bc5 {[%clk 00:10:51]} {[%emt
00:00:11]} 45. g6 {[%clk 00:05:57]} {[%emt 00:00:23]} Bd4 {[%clk 00:10:55]}
{[%emt 00:00:01]} 46. Ke6 {[%clk 00:06:01]} {[%emt 00:00:02]} b5 {[%clk
00:10:59]} {[%emt 00:00:01]} 47. Kd6 {[%clk 00:06:04]} {[%emt 00:00:02]} b4
{[%clk 00:11:03]} {[%emt 00:00:02]} 48. Ke6 {[%clk 00:06:07]} {[%emt 00:00:01]}
b3 {[%clk 00:11:07]} {[%emt 00:00:01]} 49. Kd7 {[%clk 00:06:10]} {[%emt
00:00:02]} b2 {[%clk 00:11:10]} {[%emt 00:00:02]} 50. g7 {[%clk 00:06:13]}
{[%emt 00:00:02]} Bxg7 {[%clk 00:11:13]} {[%emt 00:00:02]} 51. Kc8 {[%clk
00:06:16]} {[%emt 00:00:02]} b1=Q {[%clk 00:11:13]} {[%emt 00:00:04]} 52. Kb8
{[%clk 00:06:19]} {[%emt 00:00:03]} Be5+ {[%clk 00:11:16]} {[%emt 00:00:01]} 53.
Kc8 {[%clk 00:06:23]} {[%emt 00:00:02]} Qf5+ {[%clk 00:11:19]} {[%emt
00:00:02]} 54. Kd8 {[%clk 00:06:25]} {[%emt 00:00:02]} Bd6 {[%clk 00:11:18]}
{[%emt 00:00:05]} 55. Ke8 {[%clk 00:06:28]} {[%emt 00:00:04]} Qh7 {[%emt
00:00:24]} 0-1

[Event "Open NK Rapid 2025 bord 26-50"]
[Site "Helmond, Netherlands"]
[Date "2025.05.03"]
[Round "4.4"]
[White "Ritzerveld, Noah"]
[Black "Robinson, Roland"]
[Result "1-0"]
[TimeControl "15 min +5 sec increment"]
[WhiteFideId "1085760"]
[BlackFideId "1029142"]
[WhiteElo "2053"]
[BlackElo "1819"]

1. e4 {[%clk 00:15:09]} c6 {[%clk 00:15:10]} {[%emt 00:00:01]} 2. d4 {[%clk
00:15:13]} {[%emt 00:00:01]} d5 {[%clk 00:15:14]} 3. Nc3 {[%clk 00:15:16]}
{[%emt 00:00:01]} dxe4 {[%clk 00:15:17]} {[%emt 00:00:02]} 4. Nxe4 {[%clk
00:15:20]} {[%emt 00:00:01]} Nf6 {[%clk 00:15:21]} {[%emt 00:00:01]} 5. Nxf6+
{[%clk 00:15:24]} {[%emt 00:00:02]} exf6 {[%clk 00:15:25]} {[%emt 00:00:02]} 6.
c3 {[%clk 00:15:28]} Bd6 {[%clk 00:15:20]} {[%emt 00:00:10]} 7. Bd3 {[%clk
00:15:31]} {[%emt 00:00:02]} O-O {[%clk 00:15:19]} {[%emt 00:00:06]} 8. Qc2
{[%clk 00:15:35]} {[%emt 00:00:01]} g6 {[%clk 00:15:16]} {[%emt 00:00:08]} 9.
Be3 {[%clk 00:15:29]} {[%emt 00:00:10]} Nd7 {[%clk 00:14:56]} {[%emt 00:00:25]}
10. O-O-O {[%clk 00:15:11]} {[%emt 00:00:24]} Re8 {[%clk 00:14:40]} {[%emt
00:00:21]} 11. h4 {[%clk 00:15:06]} {[%emt 00:00:09]} Nf8 {[%clk 00:14:43]}
{[%emt 00:00:02]} 12. h5 {[%clk 00:15:00]} {[%emt 00:00:11]} Qc7 {[%clk
00:13:44]} {[%emt 00:01:05]} 13. Ne2 {[%clk 00:14:26]} {[%emt 00:00:37]} Bg4
{[%clk 00:13:28]} {[%emt 00:00:23]} 14. hxg6 {[%clk 00:13:08]} {[%emt
00:01:22]} fxg6 {[%clk 00:13:18]} {[%emt 00:00:16]} 15. c4 {[%clk 00:12:55]}
{[%emt 00:00:18]} Bxe2 {[%clk 00:13:00]} {[%emt 00:00:22]} 16. Qxe2 {[%clk
00:11:54]} {[%emt 00:01:06]} Bf4 {[%clk 00:12:36]} {[%emt 00:00:29]} 17. Kb1
{[%clk 00:10:50]} {[%emt 00:01:10]} Rad8 {[%clk 00:11:40]} {[%emt 00:01:01]} 18.
Qf3 {[%clk 00:10:23]} {[%emt 00:00:30]} Bxe3 {[%clk 00:11:12]} {[%emt
00:00:34]} 19. fxe3 {[%clk 00:10:26]} {[%emt 00:00:01]} Qe7 {[%clk 00:10:39]}
{[%emt 00:00:39]} 20. Rhe1 {[%clk 00:10:04]} {[%emt 00:00:27]} Ne6 {[%clk
00:09:38]} {[%emt 00:01:07]} 21. a3 {[%clk 00:09:20]} {[%emt 00:00:49]} Ng5
{[%clk 00:09:05]} {[%emt 00:00:37]} 22. Qf2 {[%clk 00:09:00]} {[%emt 00:00:24]}
Ne4 {[%clk 00:08:54]} {[%emt 00:00:18]} 23. Qc2 {[%clk 00:09:02]} {[%emt
00:00:02]} Kg7 {[%clk 00:07:25]} {[%emt 00:01:35]} 24. Rf1 {[%clk 00:08:41]}
{[%emt 00:00:25]} h5 {[%clk 00:07:02]} {[%emt 00:00:28]} 25. Ka2 {[%clk
00:08:20]} {[%emt 00:00:26]} Qe6 {[%clk 00:05:28]} {[%emt 00:01:39]} 26. Ka1
{[%clk 00:08:14]} {[%emt 00:00:12]} g5 {[%clk 00:05:12]} {[%emt 00:00:21]} 27.
Qb3 {[%clk 00:06:27]} {[%emt 00:01:52]} b6 {[%clk 00:05:09]} {[%emt 00:00:08]}
28. Qa4 {[%clk 00:06:20]} {[%emt 00:00:12]} a5 {[%clk 00:04:42]} {[%emt
00:00:32]} 29. Qb3 {[%clk 00:05:33]} {[%emt 00:00:51]} Rb8 {[%clk 00:04:22]}
{[%emt 00:00:26]} 30. d5 {[%clk 00:05:25]} {[%emt 00:00:13]} cxd5 {[%clk
00:03:55]} {[%emt 00:00:31]} 31. cxd5 {[%clk 00:05:29]} Nc5 {[%clk 00:03:09]}
{[%emt 00:00:51]} 32. Qc2 {[%clk 00:04:09]} {[%emt 00:01:25]} Qf7 {[%clk
00:01:51]} {[%emt 00:01:23]} 33. d6 {[%clk 00:02:48]} {[%emt 00:01:27]} Nxd3
{[%clk 00:01:33]} {[%emt 00:00:22]} 34. Rxd3 {[%clk 00:02:49]} {[%emt
00:00:04]} Red8 {[%clk 00:01:23]} {[%emt 00:00:16]} 35. Qc6 {[%clk 00:02:33]}
{[%emt 00:00:21]} Qd7 {[%clk 00:01:13]} {[%emt 00:00:15]} 36. Qc3 {[%clk
00:02:21]} {[%emt 00:00:17]} Rf8 {[%clk 00:00:59]} {[%emt 00:00:19]} 37. Rd5
{[%clk 00:02:22]} {[%emt 00:00:04]} Kg6 {[%clk 00:00:33]} {[%emt 00:00:30]} 38.
Qd3+ {[%clk 00:02:23]} {[%emt 00:00:05]} Kh6 {[%clk 00:00:20]} {[%emt
00:00:18]} 39. Qd4 {[%clk 00:02:23]} {[%emt 00:00:04]} 1-0

[Event "Open NK Rapid 2025 bord 26-50"]
[Site "Helmond, Netherlands"]
[Date "2025.05.03"]
[Round "4.5"]
[White "Elferink, Leon"]
[Black "Kshirsagar, Pranav"]
[Result "1-0"]
[TimeControl "15 min +5 sec increment"]
[WhiteFideId "1086545"]
[BlackFideId "1084011"]
[WhiteElo "1822"]
[BlackElo "2049"]

1. e4 {[%clk 00:15:08]} {[%emt 00:00:02]} c6 {[%clk 00:15:10]} {[%emt
00:00:01]} 2. d4 {[%clk 00:15:12]} d5 {[%clk 00:15:14]} 3. exd5 {[%clk
00:15:15]} {[%emt 00:00:01]} cxd5 {[%clk 00:15:18]} 4. Bd3 {[%clk 00:15:19]}
{[%emt 00:00:01]} Nc6 {[%clk 00:15:22]} {[%emt 00:00:01]} 5. c3 {[%clk
00:15:23]} Nf6 {[%clk 00:15:26]} {[%emt 00:00:02]} 6. h3 {[%clk 00:15:27]}
{[%emt 00:00:01]} g6 {[%clk 00:15:30]} {[%emt 00:00:01]} 7. Nf3 {[%clk
00:15:31]} Bg7 {[%clk 00:15:34]} 8. O-O {[%clk 00:15:34]} {[%emt 00:00:02]} O-O
{[%clk 00:15:37]} {[%emt 00:00:02]} 9. Re1 {[%clk 00:15:37]} Qc7 {[%clk
00:14:44]} {[%emt 00:00:58]} 10. Be3 {[%clk 00:15:12]} {[%emt 00:00:31]} Re8
{[%clk 00:14:37]} {[%emt 00:00:12]} 11. Nbd2 {[%clk 00:14:55]} {[%emt
00:00:21]} Bd7 {[%clk 00:14:33]} {[%emt 00:00:10]} 12. Nb3 {[%clk 00:14:42]}
{[%emt 00:00:18]} b6 {[%clk 00:14:08]} {[%emt 00:00:30]} 13. a4 {[%clk
00:14:11]} {[%emt 00:00:35]} e5 {[%clk 00:13:37]} {[%emt 00:00:37]} 14. dxe5
{[%clk 00:14:06]} {[%emt 00:00:10]} Nxe5 {[%clk 00:13:40]} {[%emt 00:00:02]} 15.
Nxe5 {[%clk 00:12:20]} {[%emt 00:01:51]} Qxe5 {[%clk 00:13:44]} {[%emt
00:00:01]} 16. a5 {[%clk 00:12:16]} {[%emt 00:00:10]} b5 {[%clk 00:12:59]}
{[%emt 00:00:49]} 17. Nc5 {[%clk 00:11:55]} {[%emt 00:00:25]} Bc6 {[%clk
00:13:01]} {[%emt 00:00:04]} 18. Bd4 {[%clk 00:11:48]} {[%emt 00:00:12]} Qg5
{[%clk 00:13:00]} {[%emt 00:00:05]} 19. Qf3 {[%clk 00:10:39]} {[%emt 00:01:14]}
Nh5 {[%clk 00:11:00]} {[%emt 00:02:05]} 20. Be3 {[%clk 00:09:19]} {[%emt
00:01:26]} Qe7 {[%emt 00:01:58]} 21. g4 {[%clk 00:08:04]} Nf6 {[%clk 00:10:11]}
{[%emt 00:00:20]} 22. Re2 {[%clk 00:07:42]} {[%emt 00:00:27]} Qd6 {[%clk
00:10:11]} {[%emt 00:00:06]} 23. Qf4 {[%clk 00:07:12]} {[%emt 00:00:34]} Qd8
{[%clk 00:09:55]} {[%emt 00:00:22]} 24. Rae1 {[%clk 00:06:31]} {[%emt
00:00:46]} d4 {[%clk 00:06:06]} {[%emt 00:03:54]} 25. Bxd4 {[%clk 00:05:35]}
{[%emt 00:01:00]} Rxe2 {[%clk 00:06:10]} 26. Rxe2 {[%clk 00:05:34]} {[%emt
00:00:06]} Qd5 {[%clk 00:06:05]} {[%emt 00:00:10]} 27. Ne4 {[%clk 00:04:57]}
{[%emt 00:00:42]} Nxe4 {[%clk 00:02:34]} {[%emt 00:03:37]} 28. Bxe4 {[%clk
00:04:43]} {[%emt 00:00:19]} Qc4 {[%clk 00:02:38]} {[%emt 00:00:01]} 29. Bxc6
{[%clk 00:04:43]} {[%emt 00:00:04]} Qxc6 {[%clk 00:02:35]} {[%emt 00:00:09]} 30.
Qe4 {[%clk 00:03:59]} {[%emt 00:00:49]} Qc8 {[%clk 00:02:24]} {[%emt 00:00:16]}
31. Bxg7 {[%clk 00:03:52]} {[%emt 00:00:11]} Kxg7 {[%clk 00:02:28]} {[%emt
00:00:01]} 32. Qe5+ {[%clk 00:03:55]} {[%emt 00:00:02]} Kg8 {[%clk 00:02:33]}
33. Qxb5 {[%clk 00:03:56]} {[%emt 00:00:04]} Rb8 {[%clk 00:02:17]} {[%emt
00:00:22]} 34. Qe5 {[%clk 00:03:58]} a6 {[%clk 00:01:28]} {[%emt 00:00:56]} 35.
Rd2 {[%clk 00:03:33]} {[%emt 00:00:29]} Rb5 {[%clk 00:01:19]} {[%emt 00:00:14]}
36. Qe7 {[%clk 00:03:30]} {[%emt 00:00:07]} Qc4 {[%clk 00:00:17]} {[%emt
00:01:08]} 37. Rd8+ {[%clk 00:03:28]} {[%emt 00:00:07]} Kg7 {[%clk 00:00:21]}
{[%emt 00:00:01]} 38. g5 {[%clk 00:03:13]} {[%emt 00:00:20]} Qc5 {[%clk
00:00:12]} {[%emt 00:00:15]} 39. Qf6# {[%clk 00:03:14]} {[%emt 00:00:03]} 1-0

[Event "Open NK Rapid 2025 bord 26-50"]
[Site "Helmond, Netherlands"]
[Date "2025.05.03"]
[Round "4.6"]
[White "Van Ravensteijn, Antal"]
[Black "Ngangbam, Chingthang"]
[Result "1-0"]
[TimeControl "15 min +5 sec increment"]
[WhiteFideId "1060759"]
[BlackFideId "1086510"]
[WhiteElo "2048"]
[BlackElo "1812"]

1. Nf3 {[%clk 00:15:08]} {[%emt 00:00:01]} Nf6 {[%clk 00:15:07]} {[%emt
00:00:03]} 2. g3 {[%clk 00:15:12]} {[%emt 00:00:02]} g6 {[%clk 00:15:08]}
{[%emt 00:00:04]} 3. Bg2 {[%clk 00:15:15]} {[%emt 00:00:02]} Bg7 {[%clk
00:15:11]} {[%emt 00:00:01]} 4. O-O {[%clk 00:15:17]} {[%emt 00:00:03]} c5
{[%clk 00:15:11]} {[%emt 00:00:05]} 5. c4 {[%clk 00:15:21]} {[%emt 00:00:01]}
O-O {[%clk 00:15:14]} {[%emt 00:00:03]} 6. Nc3 {[%clk 00:15:24]} {[%emt
00:00:02]} Nc6 {[%clk 00:15:13]} {[%emt 00:00:05]} 7. d4 {[%clk 00:14:53]}
{[%emt 00:00:36]} cxd4 {[%clk 00:14:00]} {[%emt 00:01:18]} 8. Nxd4 {[%clk
00:14:57]} {[%emt 00:00:02]} Qb6 {[%clk 00:13:37]} {[%emt 00:00:27]} 9. Nb3
{[%clk 00:14:36]} {[%emt 00:00:26]} d6 {[%clk 00:13:19]} {[%emt 00:00:23]} 10.
Be3 {[%clk 00:14:12]} {[%emt 00:00:29]} Qc7 {[%clk 00:13:14]} {[%emt 00:00:10]}
11. Rc1 {[%clk 00:13:51]} {[%emt 00:00:27]} Bd7 {[%clk 00:11:50]} {[%emt
00:01:28]} 12. Qd2 {[%clk 00:13:13]} {[%emt 00:00:43]} Ng4 {[%clk 00:10:54]}
{[%emt 00:01:00]} 13. Nd5 {[%clk 00:12:26]} {[%emt 00:00:53]} Qd8 {[%clk
00:10:39]} {[%emt 00:00:20]} 14. Nd4 {[%clk 00:11:35]} {[%emt 00:00:57]} Nxe3
{[%clk 00:10:10]} {[%emt 00:00:34]} 15. Nxc6 {[%clk 00:11:30]} {[%emt
00:00:10]} Nxf1 {[%clk 00:09:00]} {[%emt 00:01:14]} 16. Ncxe7+ {[%clk
00:11:28]} {[%emt 00:00:06]} Kh8 {[%clk 00:08:56]} {[%emt 00:00:09]} 17. Kxf1
{[%clk 00:11:01]} {[%emt 00:00:32]} Re8 {[%clk 00:08:29]} {[%emt 00:00:33]} 18.
Qg5 {[%clk 00:08:08]} {[%emt 00:02:58]} f6 {[%clk 00:05:36]} {[%emt 00:02:59]}
19. Nxg6+ {[%clk 00:07:52]} {[%emt 00:00:19]} hxg6 {[%clk 00:05:37]} {[%emt
00:00:04]} 20. Qxg6 {[%clk 00:07:53]} {[%emt 00:00:05]} Bc6 {[%clk 00:05:02]}
{[%emt 00:00:41]} 21. Rc3 {[%clk 00:06:32]} {[%emt 00:01:26]} Re5 {[%clk
00:04:32]} {[%emt 00:00:35]} 22. g4 {[%clk 00:05:06]} {[%emt 00:01:30]} Rc8
{[%clk 00:01:30]} {[%emt 00:03:07]} 23. Rh3+ {[%clk 00:03:53]} {[%emt
00:01:19]} Kg8 {[%clk 00:01:33]} {[%emt 00:00:01]} 24. f4 {[%clk 00:03:50]}
{[%emt 00:00:08]} Bxd5 {[%clk 00:00:16]} {[%emt 00:01:23]} 25. cxd5 {[%clk
00:02:40]} {[%emt 00:01:14]} Rc1+ {[%clk 00:00:17]} {[%emt 00:00:04]} 26. Kf2
{[%clk 00:02:44]} {[%emt 00:00:01]} Qb6+ {[%clk 00:00:16]} {[%emt 00:00:07]} 27.
Kg3 {[%clk 00:02:40]} {[%emt 00:00:09]} Re3+ {[%clk 00:00:14]} {[%emt
00:00:07]} 28. Bf3 {[%clk 00:02:31]} {[%emt 00:00:13]} Rg1+ {[%clk 00:00:13]}
{[%emt 00:00:06]} 29. Kh4 {[%clk 00:02:20]} {[%emt 00:00:15]} Qd4 {[%clk
00:00:14]} {[%emt 00:00:06]} 30. Qf5 {[%clk 00:01:57]} {[%emt 00:00:27]} Re8
{[%clk 00:00:13]} {[%emt 00:00:07]} 31. Qd7 {[%clk 00:01:38]} {[%emt 00:00:24]}
Qe3 {[%clk 00:00:12]} {[%emt 00:00:06]} 32. Qxd6 {[%clk 00:01:31]} {[%emt
00:00:12]} Qe7 {[%clk 00:00:11]} {[%emt 00:00:05]} 33. Qe6+ {[%clk 00:01:23]}
{[%emt 00:00:13]} Qxe6 {[%clk 00:00:11]} {[%emt 00:00:06]} 34. dxe6 {[%clk
00:01:26]} {[%emt 00:00:01]} Rb1 {[%clk 00:00:12]} {[%emt 00:00:04]} 35. Bd5
{[%clk 00:00:59]} {[%emt 00:00:32]} Kf8 {[%clk 00:00:15]} {[%emt 00:00:02]} 36.
Rb3 {[%clk 00:00:41]} {[%emt 00:00:23]} b6 {[%clk 00:00:18]} {[%emt 00:00:02]}
37. Rc3 {[%clk 00:00:36]} {[%emt 00:00:10]} Bh6 {[%clk 00:00:17]} {[%emt
00:00:06]} 38. g5 {[%clk 00:00:29]} {[%emt 00:00:12]} fxg5+ {[%clk 00:00:19]}
{[%emt 00:00:03]} 39. fxg5 {[%clk 00:00:33]} {[%emt 00:00:01]} Bg7 {[%clk
00:00:22]} {[%emt 00:00:02]} 40. Rc7 {[%clk 00:00:28]} {[%emt 00:00:11]} Rxb2
{[%clk 00:00:24]} {[%emt 00:00:03]} 41. Rf7+ {[%clk 00:00:26]} {[%emt
00:00:07]} Kg8 {[%clk 00:00:27]} {[%emt 00:00:02]} 42. e7 {[%clk 00:00:26]}
{[%emt 00:00:05]} Kh8 {[%clk 00:00:25]} {[%emt 00:00:07]} 43. Kh5 {[%clk
00:00:19]} {[%emt 00:00:12]} Rxe2 {[%clk 00:00:26]} {[%emt 00:00:03]} 44. Kg6
{[%clk 00:00:19]} {[%emt 00:00:05]} R2xe7 {[%clk 00:00:27]} {[%emt 00:00:05]}
45. Rf4 {[%clk 00:00:14]} {[%emt 00:00:10]} Be5 {[%clk 00:00:29]} {[%emt
00:00:03]} 46. Rh4+ {[%clk 00:00:16]} {[%emt 00:00:02]} Rh7 {[%clk 00:00:23]}
{[%emt 00:00:12]} 47. Rxh7# {[%clk 00:15:05]} {[%emt 00:00:08]} 1-0